[Event "2026 Biel Blitz Open"]
[Site "Biel, CH"]
[Date "2026.07.19"]
[Round "8"]
[White "Ashwath Kaushik"]
[Black "Haimovich, Tal"]
[Result "1/2-1/2"]
[Board "11"]
[TimeControl "180+2"]
[WhiteFideId "33387230"]
[BlackFideId "2801698"]
[WhiteElo "2122"]
[BlackElo "2347"]
[WhiteTitle "FM"]
[BlackTitle "IM"]
[WhiteClock "0:00:17"]
[BlackClock "0:00:35"]
[Variant "Standard"]
[EndDate "2026.07.19"]
[EndTime "14:19:19"]

1. d4 {[%clk 0:03:03]}  d5 {[%clk 0:03:03]} 2. Nf3 {[%clk 0:03:04]}  Nf6 {[%clk 0:03:04]} 3. c4 {[%clk 0:03:05]}  e6 {[%clk 0:03:05]}
4. g3 {[%clk 0:03:07]}  Be7 {[%clk 0:03:05]} 5. Bg2 {[%clk 0:03:07]}  O-O {[%clk 0:03:05]} 6. O-O {[%clk 0:03:08]}  Nbd7 {[%clk 0:03:05]}
7. b3 {[%clk 0:03:08]}  b6 {[%clk 0:03:05]} 8. cxd5 {[%clk 0:03:08]}  exd5 {[%clk 0:03:05]} 9. Nc3 {[%clk 0:03:04]}  Bb7 {[%clk 0:03:05]}
10. Ne5 {[%clk 0:03:05]}  Nxe5 {[%clk 0:02:57]} 11. dxe5 {[%clk 0:03:05]}  Ne4 {[%clk 0:02:58]} 12. Nxe4 {[%clk 0:03:02]}  dxe4 {[%clk 0:02:59]}
13. Qc2 {[%clk 0:03:03]}  Qd5 {[%clk 0:02:28]} 14. Bb2 {[%clk 0:02:57]}  Bc5 {[%clk 0:02:16]} 15. Rfd1 {[%clk 0:02:52]}  Qe6 {[%clk 0:02:16]}
16. Bxe4 {[%clk 0:02:50]}  Bxe4 {[%clk 0:02:16]} 17. Qxe4 {[%clk 0:02:50]}  Rae8 {[%clk 0:02:17]} 18. e3 {[%clk 0:02:44]}  f6 {[%clk 0:02:12]}
19. Qd5 {[%clk 0:02:38]}  fxe5 {[%clk 0:02:02]} 20. Qxe6+ {[%clk 0:02:32]}  Rxe6 {[%clk 0:02:02]} 21. Rd7 {[%clk 0:02:32]}  Rf7 {[%clk 0:02:00]}
22. Rad1 {[%clk 0:02:31]}  Bd6 {[%clk 0:01:58]} 23. Rd8+ {[%clk 0:02:29]}  Rf8 {[%clk 0:01:59]} 24. Rd7 {[%clk 0:02:21]}  Rf7 {[%clk 0:02:00]}
25. Rd8+ {[%clk 0:02:20]}  Rf8 {[%clk 0:02:00]} 26. Rxf8+ {[%clk 0:02:21]}  Kxf8 {[%clk 0:02:02]} 27. Rd5 {[%clk 0:02:18]}  Kf7 {[%clk 0:02:00]}
28. Kg2 {[%clk 0:02:18]}  e4 {[%clk 0:01:57]} 29. Rf5+ {[%clk 0:02:18]}  Kg8 {[%clk 0:01:51]} 30. f3 {[%clk 0:01:54]}  exf3+ {[%clk 0:01:51]}
31. Kxf3 {[%clk 0:01:55]}  c6 {[%clk 0:01:51]} 32. e4 {[%clk 0:01:56]}  g6 {[%clk 0:01:50]} 33. Rf6 {[%clk 0:01:46]}  Rxf6+ {[%clk 0:01:51]}
34. Bxf6 {[%clk 0:01:47]}  Kf7 {[%clk 0:01:52]} 35. Bd4 {[%clk 0:01:44]}  Ke6 {[%clk 0:01:50]} 36. h4 {[%clk 0:01:43]}  h5 {[%clk 0:01:49]}
37. g4 {[%clk 0:01:44]}  Bc7 {[%clk 0:01:47]} 38. b4 {[%clk 0:01:41]}  a6 {[%clk 0:01:45]} 39. a4 {[%clk 0:01:41]}  b5 {[%clk 0:01:43]}
40. axb5 {[%clk 0:01:37]}  cxb5 {[%clk 0:01:43]} 41. Bc5 {[%clk 0:01:34]}  Bd8 {[%clk 0:01:39]} 42. g5 {[%clk 0:01:25]}  Bc7 {[%clk 0:01:39]}
43. Bd4 {[%clk 0:01:23]}  Bd6 {[%clk 0:01:38]} 44. Bc3 {[%clk 0:01:24]}  Bc7 {[%clk 0:01:35]} 45. Bd4 {[%clk 0:01:18]}  a5 {[%clk 0:01:35]}
46. bxa5 {[%clk 0:01:17]}  Bxa5 {[%clk 0:01:36]} 47. Ke2 {[%clk 0:01:08]}  Bc7 {[%clk 0:01:35]} 48. Bf2 {[%clk 0:01:03]}  b4 {[%clk 0:01:31]}
49. Kd3 {[%clk 0:01:04]}  Bf4 {[%clk 0:01:14]} 50. Be1 {[%clk 0:00:52]}  b3 {[%clk 0:01:11]} 51. Kc3 {[%clk 0:00:37]}  Ke5 {[%clk 0:01:12]}
52. Kxb3 {[%clk 0:00:38]}  Kxe4 {[%clk 0:01:13]} 53. Kc4 {[%clk 0:00:38]}  Kf3 {[%clk 0:01:14]} 54. Kd5 {[%clk 0:00:28]}  Ke2 {[%clk 0:00:41]}
55. Ke6 {[%clk 0:00:21]}  Bxg5 {[%clk 0:00:35]} 56. Kf7 {[%clk 0:00:17]} 1/2-1/2

[Event "2026 Biel Blitz Open"]
[Site "Biel, CH"]
[Date "2026.07.19"]
[Round "8"]
[White "Kukushkin, Ivan"]
[Black "Filipovic, Branko"]
[Result "1/2-1/2"]
[Board "13"]
[TimeControl "180+2"]
[WhiteFideId "11634103"]
[BlackFideId "14507951"]
[WhiteElo "2265"]
[BlackElo "2109"]
[WhiteTitle "FM"]
[BlackTitle "IM"]
[WhiteClock "0:00:32"]
[BlackClock "0:01:42"]
[Variant "Standard"]
[EndDate "2026.07.19"]
[EndTime "14:25:19"]

1. e4 {[%clk 0:03:02]}  Nf6 {[%clk 0:03:03]} 2. e5 {[%clk 0:03:04]}  Nd5 {[%clk 0:03:04]} 3. Nf3 {[%clk 0:03:04]}  d6 {[%clk 0:03:05]}
4. d4 {[%clk 0:03:03]}  g6 {[%clk 0:03:04]} 5. c4 {[%clk 0:03:03]}  Nb6 {[%clk 0:03:05]} 6. exd6 {[%clk 0:03:04]}  cxd6 {[%clk 0:03:06]}
7. Nc3 {[%clk 0:03:05]}  Bg7 {[%clk 0:03:07]} 8. h3 {[%clk 0:03:02]}  O-O {[%clk 0:03:08]} 9. Be2 {[%clk 0:03:03]}  Nc6 {[%clk 0:03:08]}
10. O-O {[%clk 0:03:01]}  Bf5 {[%clk 0:03:09]} 11. Be3 {[%clk 0:02:57]}  d5 {[%clk 0:03:10]} 12. c5 {[%clk 0:02:49]}  Nc4 {[%clk 0:03:11]}
13. Bxc4 {[%clk 0:02:43]}  dxc4 {[%clk 0:03:11]} 14. Qa4 {[%clk 0:02:08]}  Bd3 {[%clk 0:03:10]} 15. Rfd1 {[%clk 0:01:47]}  Qe8 {[%clk 0:02:33]}
16. Ne1 {[%clk 0:01:37]}  Nxd4 {[%clk 0:02:19]} 17. Qxe8 {[%clk 0:01:37]}  Rfxe8 {[%clk 0:02:18]} 18. Nxd3 {[%clk 0:01:36]}  cxd3 {[%clk 0:02:13]}
19. Rxd3 {[%clk 0:01:33]}  Nc2 {[%clk 0:02:10]} 20. Rad1 {[%clk 0:01:31]}  Nxe3 {[%clk 0:02:10]} 21. Rxe3 {[%clk 0:01:31]}  Bxc3 {[%clk 0:02:03]}
22. Rxc3 {[%clk 0:01:30]}  Red8 {[%clk 0:02:01]} 23. Rcd3 {[%clk 0:01:29]}  Rxd3 {[%clk 0:01:57]} 24. Rxd3 {[%clk 0:01:30]}  Kf8 {[%clk 0:01:53]}
25. Rd7 {[%clk 0:01:30]}  Rb8 {[%clk 0:01:53]} 26. b4 {[%clk 0:01:16]}  Ke8 {[%clk 0:01:54]} 27. Rd3 {[%clk 0:01:10]}  a6 {[%clk 0:01:53]}
28. Kf1 {[%clk 0:01:11]}  b6 {[%clk 0:01:53]} 29. cxb6 {[%clk 0:01:10]}  Rxb6 {[%clk 0:01:54]} 30. a3 {[%clk 0:01:11]}  Rb5 {[%clk 0:01:50]}
31. Ke2 {[%clk 0:01:11]}  a5 {[%clk 0:01:52]} 32. bxa5 {[%clk 0:01:08]}  Rxa5 {[%clk 0:01:53]} 33. Kf3 {[%clk 0:00:56]}  Ra4 {[%clk 0:01:51]}
34. Ke3 {[%clk 0:00:54]}  e5 {[%clk 0:01:50]} 35. Ke2 {[%clk 0:00:50]}  Ke7 {[%clk 0:01:50]} 36. Ke3 {[%clk 0:00:47]}  Ke6 {[%clk 0:01:51]}
37. f3 {[%clk 0:00:47]}  f5 {[%clk 0:01:49]} 38. Rb3 {[%clk 0:00:47]}  f4+ {[%clk 0:01:45]} 39. Kd3 {[%clk 0:00:46]}  Kf5 {[%clk 0:01:43]}
40. Ke2 {[%clk 0:00:46]}  g5 {[%clk 0:01:41]} 41. Kf2 {[%clk 0:00:47]}  h5 {[%clk 0:01:42]} 42. Kf1 {[%clk 0:00:47]}  g4 {[%clk 0:01:41]}
43. hxg4+ {[%clk 0:00:44]}  hxg4 {[%clk 0:01:42]} 44. Ke2 {[%clk 0:00:32]} 1/2-1/2

[Event "2026 Biel Blitz Open"]
[Site "Biel, CH"]
[Date "2026.07.19"]
[Round "8"]
[White "El-Mais, Ibaa"]
[Black "Cao, Qingfeng"]
[Result "0-1"]
[Board "14"]
[TimeControl "180+2"]
[WhiteFideId "1312715"]
[BlackFideId "8627568"]
[WhiteElo "2012"]
[BlackElo "2264"]
[BlackTitle "IM"]
[WhiteClock "0:00:03"]
[BlackClock "0:00:36"]
[Variant "Standard"]
[EndDate "2026.07.19"]
[EndTime "14:19:15"]

1. d4 {[%clk 0:03:02]}  Nf6 {[%clk 0:03:03]} 2. Nf3 {[%clk 0:03:02]}  e6 {[%clk 0:03:04]} 3. e3 {[%clk 0:03:00]}  b6 {[%clk 0:03:04]}
4. Bd3 {[%clk 0:02:59]}  Bb7 {[%clk 0:03:05]} 5. b3 {[%clk 0:02:57]}  c5 {[%clk 0:03:02]} 6. Bb2 {[%clk 0:02:57]}  cxd4 {[%clk 0:02:58]}
7. exd4 {[%clk 0:02:54]}  d5 {[%clk 0:02:50]} 8. O-O {[%clk 0:02:40]}  Bd6 {[%clk 0:02:51]} 9. Nbd2 {[%clk 0:02:32]}  O-O {[%clk 0:02:51]}
10. Re1 {[%clk 0:02:31]}  Ba6 {[%clk 0:02:37]} 11. c4 {[%clk 0:02:20]}  Nbd7 {[%clk 0:02:30]} 12. Ne5 {[%clk 0:02:11]}  dxc4 {[%clk 0:02:28]}
13. bxc4 {[%clk 0:02:00]}  Bb7 {[%clk 0:02:10]} 14. Ndf3 {[%clk 0:01:13]}  h6 {[%clk 0:01:55]} 15. Rc1 {[%clk 0:01:14]}  Rc8 {[%clk 0:01:55]}
16. Qa4 {[%clk 0:01:01]}  Qc7 {[%clk 0:01:47]} 17. Bb1 {[%clk 0:00:47]}  Rfd8 {[%clk 0:01:39]} 18. Qc2 {[%clk 0:00:44]}  Nf8 {[%clk 0:01:33]}
19. Qe2 {[%clk 0:00:13]}  Qb8 {[%clk 0:01:29]} 20. Red1 {[%clk 0:00:12]}  Qa8 {[%clk 0:01:28]} 21. Rd3 {[%clk 0:00:07]}  Be4 {[%clk 0:01:28]}
22. Re3 {[%clk 0:00:05]}  Bxb1 {[%clk 0:01:28]} 23. Rxb1 {[%clk 0:00:06]}  Qb7 {[%clk 0:01:21]} 24. Nd2 {[%clk 0:00:06]}  Bxe5 {[%clk 0:01:10]}
25. Rxe5 {[%clk 0:00:07]}  Ng6 {[%clk 0:01:05]} 26. Re3 {[%clk 0:00:07]}  Nf4 {[%clk 0:01:05]} 27. Qf3 {[%clk 0:00:07]}  Qxf3 {[%clk 0:01:06]}
28. Rxf3 {[%clk 0:00:08]}  Ne2+ {[%clk 0:01:07]} 29. Kf1 {[%clk 0:00:08]}  Nxd4 {[%clk 0:01:08]} 30. Rf4 {[%clk 0:00:04]}  Nf5 {[%clk 0:01:06]}
31. g4 {[%clk 0:00:03]}  Rxd2 {[%clk 0:00:59]} 32. gxf5 {[%clk 0:00:04]}  exf5 {[%clk 0:00:54]} 33. Bxf6 {[%clk 0:00:03]}  gxf6 {[%clk 0:00:56]}
34. Rxf5 {[%clk 0:00:03]}  Rxc4 {[%clk 0:00:57]} 35. Rxf6 {[%clk 0:00:04]}  Rxa2 {[%clk 0:00:53]} 36. Rb3 {[%clk 0:00:04]}  Kg7 {[%clk 0:00:53]}
37. Rbf3 {[%clk 0:00:05]}  Rc7 {[%clk 0:00:53]} 38. R6f4 {[%clk 0:00:05]}  Ra5 {[%clk 0:00:54]} 39. h4 {[%clk 0:00:06]}  Rac5 {[%clk 0:00:47]}
40. Rg3+ {[%clk 0:00:07]}  Kf8 {[%clk 0:00:49]} 41. Rf6 {[%clk 0:00:06]}  R5c6 {[%clk 0:00:48]} 42. Rf5 {[%clk 0:00:05]}  a5 {[%clk 0:00:47]}
43. Rb3 {[%clk 0:00:01]}  Ra7 {[%clk 0:00:43]} 44. Rfb5 {[%clk 0:00:04]}  Ra6 {[%clk 0:00:41]} 45. Ke2 {[%clk 0:00:04]}  a4 {[%clk 0:00:42]}
46. R3b4 {[%clk 0:00:03]}  a3 {[%clk 0:00:43]} 47. Rb1 {[%clk 0:00:04]}  a2 {[%clk 0:00:44]} 48. Ra1 {[%clk 0:00:05]}  Rc2+ {[%clk 0:00:40]}
49. Ke3 {[%clk 0:00:05]}  Rc5 {[%clk 0:00:39]} 50. Rb2 {[%clk 0:00:05]}  Rca5 {[%clk 0:00:40]} 51. Kd4 {[%clk 0:00:04]}  Ke7 {[%clk 0:00:40]}
52. Kc4 {[%clk 0:00:04]}  Kf6 {[%clk 0:00:39]} 53. f3 {[%clk 0:00:04]}  Kf5 {[%clk 0:00:40]} 54. Rd2 {[%clk 0:00:03]}  Ra3 {[%clk 0:00:37]}
55. Rd7 {[%clk 0:00:03]}  f6 {[%clk 0:00:36]} 56. Kd5 {[%clk 0:00:03]} 0-1

[Event "2026 Biel Blitz Open"]
[Site "Biel, CH"]
[Date "2026.07.19"]
[Round "8"]
[White "Fernandes Barbosa Dos Santos, Gabriel"]
[Black "Rappazzo, Johannes"]
[Result "0-1"]
[Board "15"]
[TimeControl "180+2"]
[WhiteFideId "1354388"]
[BlackFideId "1340069"]
[WhiteElo "2167"]
[BlackElo "2032"]
[WhiteTitle "CM"]
[BlackTitle "FM"]
[WhiteClock "0:00:06"]
[BlackClock "0:00:41"]
[Variant "Standard"]
[EndDate "2026.07.19"]
[EndTime "14:18:44"]

1. e4 {[%clk 0:03:02]}  c5 {[%clk 0:03:04]} 2. Nf3 {[%clk 0:03:02]}  d6 {[%clk 0:03:05]} 3. d4 {[%clk 0:03:03]}  cxd4 {[%clk 0:03:07]}
4. Nxd4 {[%clk 0:03:03]}  Nf6 {[%clk 0:03:08]} 5. Nc3 {[%clk 0:03:03]}  a6 {[%clk 0:03:09]} 6. Bg5 {[%clk 0:03:01]}  Nbd7 {[%clk 0:03:10]}
7. Qe2 {[%clk 0:03:01]}  h6 {[%clk 0:03:12]} 8. Bh4 {[%clk 0:03:02]}  g6 {[%clk 0:03:13]} 9. f4 {[%clk 0:03:02]}  e5 {[%clk 0:03:14]}
10. fxe5 {[%clk 0:03:02]}  dxe5 {[%clk 0:03:16]} 11. O-O-O {[%clk 0:03:02]}  Qc7 {[%clk 0:03:17]} 12. Nb3 {[%clk 0:02:58]}  b5 {[%clk 0:03:19]}
13. Rxd7 {[%clk 0:02:57]}  Nxd7 {[%clk 0:03:19]} 14. Nd5 {[%clk 0:02:56]}  Qb8 {[%clk 0:03:20]} 15. Na5 {[%clk 0:02:54]}  Bb7 {[%clk 0:03:19]}
16. Nxb7 {[%clk 0:02:45]}  Qxb7 {[%clk 0:03:20]} 17. Qf3 {[%clk 0:02:48]}  Bg7 {[%clk 0:03:17]} 18. Be7 {[%clk 0:02:48]}  Rc8 {[%clk 0:03:09]}
19. Bd3 {[%clk 0:02:48]}  Qc6 {[%clk 0:02:53]} 20. Rf1 {[%clk 0:02:24]}  Qe6 {[%clk 0:02:45]} 21. h4 {[%clk 0:02:14]}  h5 {[%clk 0:02:40]}
22. Kb1 {[%clk 0:02:12]}  f6 {[%clk 0:02:18]} 23. Qg3 {[%clk 0:02:01]}  Kf7 {[%clk 0:02:18]} 24. Bb4 {[%clk 0:01:54]}  Rhe8 {[%clk 0:02:09]}
25. Be2 {[%clk 0:01:49]}  Nb6 {[%clk 0:02:01]} 26. Qf3 {[%clk 0:00:47]}  Nxd5 {[%clk 0:01:32]} 27. exd5 {[%clk 0:00:47]}  Qg4 {[%clk 0:01:34]}
28. Qxg4 {[%clk 0:00:19]}  hxg4 {[%clk 0:01:35]} 29. Bxg4 {[%clk 0:00:16]}  f5 {[%clk 0:01:36]} 30. Be2 {[%clk 0:00:13]}  Red8 {[%clk 0:01:30]}
31. g4 {[%clk 0:00:11]}  f4 {[%clk 0:01:26]} 32. Bf3 {[%clk 0:00:13]}  Bf8 {[%clk 0:01:26]} 33. Bc3 {[%clk 0:00:13]}  Bd6 {[%clk 0:01:27]}
34. Re1 {[%clk 0:00:13]}  Re8 {[%clk 0:01:27]} 35. Be4 {[%clk 0:00:13]}  Re7 {[%clk 0:01:27]} 36. h5 {[%clk 0:00:14]}  gxh5 {[%clk 0:01:25]}
37. gxh5 {[%clk 0:00:15]}  Rh8 {[%clk 0:01:25]} 38. Rg1 {[%clk 0:00:16]}  Ke8 {[%clk 0:01:17]} 39. Rh1 {[%clk 0:00:13]}  Kd7 {[%clk 0:01:17]}
40. Kc1 {[%clk 0:00:13]}  Rf7 {[%clk 0:01:11]} 41. Kd1 {[%clk 0:00:10]}  Ke7 {[%clk 0:01:10]} 42. Ke2 {[%clk 0:00:11]}  Kf6 {[%clk 0:01:11]}
43. Be1 {[%clk 0:00:07]}  Rg7 {[%clk 0:01:04]} 44. Bh4+ {[%clk 0:00:06]}  Kf7 {[%clk 0:01:06]} 45. Bg6+ {[%clk 0:00:05]}  Rxg6 {[%clk 0:01:06]}
46. hxg6+ {[%clk 0:00:06]}  Kxg6 {[%clk 0:01:07]} 47. Kf3 {[%clk 0:00:07]}  Kf5 {[%clk 0:00:39]} 48. Kg2 {[%clk 0:00:08]}  e4 {[%clk 0:00:39]}
49. Be1 {[%clk 0:00:07]}  f3+ {[%clk 0:00:40]} 50. Kg1 {[%clk 0:00:06]}  Bc5+ {[%clk 0:00:41]} 0-1

[Event "2026 Biel Blitz Open"]
[Site "Biel, CH"]
[Date "2026.07.19"]
[Round "8"]
[White "Hirzel, Robin"]
[Black "Fogo Esquivel, Levi Kalani Alexander"]
[Result "0-1"]
[Board "16"]
[TimeControl "180+2"]
[WhiteFideId "1342320"]
[BlackFideId "5183189"]
[WhiteElo "2022"]
[BlackElo "2219"]
[BlackTitle "FM"]
[WhiteClock "0:00:28"]
[BlackClock "0:01:05"]
[Variant "Standard"]
[EndDate "2026.07.19"]
[EndTime "14:27:03"]

1. e4 {[%clk 0:03:03]}  e5 {[%clk 0:03:04]} 2. Nc3 {[%clk 0:03:05]}  Nc6 {[%clk 0:03:04]} 3. Bc4 {[%clk 0:03:06]}  Nf6 {[%clk 0:03:05]}
4. d3 {[%clk 0:03:07]}  Bb4 {[%clk 0:03:06]} 5. Nge2 {[%clk 0:03:07]}  d5 {[%clk 0:03:07]} 6. exd5 {[%clk 0:03:08]}  Nxd5 {[%clk 0:03:08]}
7. Bd2 {[%clk 0:03:04]}  Be6 {[%clk 0:03:09]} 8. Bxd5 {[%clk 0:03:04]}  Bxd5 {[%clk 0:03:09]} 9. Nxd5 {[%clk 0:03:05]}  Bxd2+ {[%clk 0:03:10]}
10. Qxd2 {[%clk 0:03:06]}  Qxd5 {[%clk 0:03:11]} 11. O-O {[%clk 0:03:03]}  O-O-O {[%clk 0:03:11]} 12. Nc3 {[%clk 0:03:04]}  Qd7 {[%clk 0:03:08]}
13. Rfe1 {[%clk 0:02:58]}  Rhe8 {[%clk 0:03:09]} 14. Qe3 {[%clk 0:02:56]}  Nd4 {[%clk 0:03:08]} 15. Rac1 {[%clk 0:02:48]}  f5 {[%clk 0:03:05]}
16. Ne2 {[%clk 0:02:35]}  Nc6 {[%clk 0:03:03]} 17. a3 {[%clk 0:02:30]}  e4 {[%clk 0:02:57]} 18. dxe4 {[%clk 0:02:28]}  Rxe4 {[%clk 0:02:58]}
19. Qc3 {[%clk 0:02:19]}  f4 {[%clk 0:02:28]} 20. h3 {[%clk 0:01:33]}  Rde8 {[%clk 0:02:12]} 21. Rcd1 {[%clk 0:01:34]}  Qe7 {[%clk 0:01:56]}
22. Rd2 {[%clk 0:01:26]}  Qg5 {[%clk 0:01:34]} 23. Qd3 {[%clk 0:01:10]}  f3 {[%clk 0:01:19]} 24. Qd7+ {[%clk 0:00:43]}  Kb8 {[%clk 0:01:20]}
25. g3 {[%clk 0:00:37]}  fxe2 {[%clk 0:01:10]} 26. h4 {[%clk 0:00:34]}  Qe7 {[%clk 0:01:11]} 27. Qd3 {[%clk 0:00:28]}  Rd4 {[%clk 0:01:05]} 0-1

[Event "2026 Biel Blitz Open"]
[Site "Biel, CH"]
[Date "2026.07.19"]
[Round "8"]
[White "Schweizer, Samuel"]
[Black "Rohrer, Christophe"]
[Result "1-0"]
[Board "17"]
[TimeControl "180+2"]
[WhiteFideId "1325353"]
[BlackFideId "1326546"]
[WhiteElo "2006"]
[BlackElo "2216"]
[BlackTitle "FM"]
[WhiteClock "0:02:29"]
[BlackClock "0:00:52"]
[Variant "Standard"]
[EndDate "2026.07.19"]
[EndTime "14:25:29"]

1. Nc3 {[%clk 0:02:59]}  d5 {[%clk 0:03:00]} 2. d4 {[%clk 0:03:00]}  Nf6 {[%clk 0:03:00]} 3. Bf4 {[%clk 0:02:58]}  Bf5 {[%clk 0:02:57]}
4. e3 {[%clk 0:02:58]}  e6 {[%clk 0:02:57]} 5. Nf3 {[%clk 0:02:58]}  Be7 {[%clk 0:02:50]} 6. Bd3 {[%clk 0:02:53]}  Bxd3 {[%clk 0:02:43]}
7. cxd3 {[%clk 0:02:58]}  c6 {[%clk 0:02:40]} 8. h3 {[%clk 0:02:55]}  Nbd7 {[%clk 0:02:40]} 9. Bh2 {[%clk 0:02:55]}  O-O {[%clk 0:02:39]}
10. O-O {[%clk 0:02:54]}  Re8 {[%clk 0:02:30]} 11. a3 {[%clk 0:02:53]}  a5 {[%clk 0:02:28]} 12. Rc1 {[%clk 0:02:52]}  Bf8 {[%clk 0:02:16]}
13. Ne5 {[%clk 0:02:49]}  Nxe5 {[%clk 0:02:15]} 14. dxe5 {[%clk 0:02:49]}  Nd7 {[%clk 0:02:15]} 15. e4 {[%clk 0:02:43]}  d4 {[%clk 0:01:46]}
16. Ne2 {[%clk 0:02:41]}  c5 {[%clk 0:01:46]} 17. f4 {[%clk 0:02:41]}  Ra6 {[%clk 0:01:32]} 18. Rc2 {[%clk 0:02:42]}  a4 {[%clk 0:01:29]}
19. Kh1 {[%clk 0:02:36]}  b5 {[%clk 0:01:29]} 20. Ng1 {[%clk 0:02:36]}  Qb6 {[%clk 0:01:11]} 21. Nf3 {[%clk 0:02:34]}  h6 {[%clk 0:01:09]}
22. Qe2 {[%clk 0:02:30]}  Raa8 {[%clk 0:01:04]} 23. g4 {[%clk 0:02:29]}  g6 {[%clk 0:00:52]} 1-0

[Event "2026 Biel Blitz Open"]
[Site "Biel, CH"]
[Date "2026.07.19"]
[Round "8"]
[White "Kolly, Jacques"]
[Black "Vihaan Dumir"]
[Result "0-1"]
[Board "18"]
[TimeControl "180+2"]
[WhiteFideId "1302183"]
[BlackFideId "25901010"]
[WhiteElo "2203"]
[BlackElo "1965"]
[WhiteTitle "FM"]
[BlackTitle "CM"]
[WhiteClock "0:03:02"]
[BlackClock "0:00:58"]
[Variant "Standard"]
[EndDate "2026.07.19"]
[EndTime "14:17:20"]

1. d4 {[%clk 0:03:02]}  Nf6 {[%clk 0:03:03]} 2. c4 {[%clk 0:03:05]}  e6 {[%clk 0:03:04]} 3. Nc3 {[%clk 0:03:07]}  Bb4 {[%clk 0:03:05]}
4. Bg5 {[%clk 0:03:08]}  O-O {[%clk 0:03:02]} 5. e3 {[%clk 0:03:08]}  c5 {[%clk 0:02:39]} 6. d5 {[%clk 0:03:06]}  exd5 {[%clk 0:02:37]}
7. cxd5 {[%clk 0:03:06]}  d6 {[%clk 0:02:38]} 8. Nf3 {[%clk 0:02:43]}  a6 {[%clk 0:02:34]} 9. Be2 {[%clk 0:02:43]}  b5 {[%clk 0:02:28]}
10. O-O {[%clk 0:02:44]}  Ba5 {[%clk 0:02:28]} 11. Ne4 {[%clk 0:02:28]}  Bf5 {[%clk 0:01:44]} 12. Nxf6+ {[%clk 0:02:21]}  gxf6 {[%clk 0:01:45]}
13. Bh4 {[%clk 0:01:58]}  Nd7 {[%clk 0:01:41]} 14. Bd3 {[%clk 0:01:54]}  Bg6 {[%clk 0:01:42]} 15. Bxg6 {[%clk 0:01:37]}  fxg6 {[%clk 0:01:41]}
16. Bg3 {[%clk 0:01:36]}  Bc7 {[%clk 0:01:37]} 17. Qc2 {[%clk 0:01:34]}  c4 {[%clk 0:01:34]} 18. e4 {[%clk 0:01:32]}  Nc5 {[%clk 0:01:33]}
19. Rfe1 {[%clk 0:01:24]}  Qd7 {[%clk 0:01:32]} 20. Nd4 {[%clk 0:01:09]}  Rae8 {[%clk 0:01:33]} 21. f3 {[%clk 0:01:07]}  Nd3 {[%clk 0:01:29]}
22. Red1 {[%clk 0:00:57]}  Bb6 {[%clk 0:01:29]} 23. Rxd3 {[%clk 0:00:46]}  cxd3 {[%clk 0:01:31]} 24. Qxd3 {[%clk 0:00:45]}  Qa7 {[%clk 0:01:30]}
25. Bf2 {[%clk 0:00:48]}  Rc8 {[%clk 0:01:25]} 26. Rf1 {[%clk 0:00:45]}  Rc4 {[%clk 0:01:17]} 27. Nc6 {[%clk 0:00:44]}  Bxf2+ {[%clk 0:01:16]}
28. Kh1 {[%clk 0:00:15]}  Qe3 {[%clk 0:01:17]} 29. Qd1 {[%clk 0:00:13]}  Qc5 {[%clk 0:00:58]} 30. b3 {[%clk 0:00:00]} 0-1

[Event "2026 Biel Blitz Open"]
[Site "Biel, CH"]
[Date "2026.07.19"]
[Round "8"]
[White "Harish, Neeraj"]
[Black "Schweizer, Simon"]
[Result "0-1"]
[Board "19"]
[TimeControl "180+2"]
[WhiteFideId "30958130"]
[BlackFideId "1325361"]
[WhiteElo "1920"]
[BlackElo "2182"]
[WhiteTitle "CM"]
[WhiteClock "0:00:46"]
[BlackClock "0:02:05"]
[Variant "Standard"]
[EndDate "2026.07.19"]
[EndTime "14:16:09"]

1. e4 {[%clk 0:03:03]}  e5 {[%clk 0:03:03]} 2. Nf3 {[%clk 0:03:04]}  Nc6 {[%clk 0:03:04]} 3. Nc3 {[%clk 0:03:05]}  Nf6 {[%clk 0:03:06]}
4. a3 {[%clk 0:03:06]}  d5 {[%clk 0:03:06]} 5. Bb5 {[%clk 0:03:06]}  Nxe4 {[%clk 0:03:04]} 6. Nxe4 {[%clk 0:02:55]}  dxe4 {[%clk 0:03:04]}
7. Nxe5 {[%clk 0:02:55]}  Qd5 {[%clk 0:03:06]} 8. Bxc6+ {[%clk 0:02:47]}  bxc6 {[%clk 0:03:07]} 9. d4 {[%clk 0:02:46]}  exd3 {[%clk 0:03:05]}
10. Nxd3 {[%clk 0:02:46]}  Qxg2 {[%clk 0:03:04]} 11. Qe2+ {[%clk 0:02:38]}  Be7 {[%clk 0:03:03]} 12. Rf1 {[%clk 0:02:38]}  Bh3 {[%clk 0:03:03]}
13. Bf4 {[%clk 0:02:28]}  Qxf1+ {[%clk 0:03:03]} 14. Qxf1 {[%clk 0:02:29]}  Bxf1 {[%clk 0:03:04]} 15. Kxf1 {[%clk 0:02:30]}  Bd6 {[%clk 0:03:04]}
16. Bg3 {[%clk 0:02:29]}  O-O {[%clk 0:02:59]} 17. Kg2 {[%clk 0:02:23]}  Rfe8 {[%clk 0:02:59]} 18. Kf3 {[%clk 0:02:25]}  f6 {[%clk 0:03:00]}
19. Nb4 {[%clk 0:02:23]}  c5 {[%clk 0:02:59]} 20. Nd5 {[%clk 0:02:21]}  Rac8 {[%clk 0:02:59]} 21. Rd1 {[%clk 0:02:16]}  Kf7 {[%clk 0:02:59]}
22. Rd3 {[%clk 0:02:16]}  Bxg3 {[%clk 0:02:38]} 23. hxg3 {[%clk 0:02:16]}  c6 {[%clk 0:02:39]} 24. Nf4 {[%clk 0:02:12]}  Rcd8 {[%clk 0:02:40]}
25. Rc3 {[%clk 0:02:13]}  Re5 {[%clk 0:02:38]} 26. Nd3 {[%clk 0:02:14]}  Rf5+ {[%clk 0:02:37]} 27. Ke2 {[%clk 0:02:04]}  h5 {[%clk 0:02:29]}
28. Nxc5 {[%clk 0:02:02]}  Re8+ {[%clk 0:02:29]} 29. Kf1 {[%clk 0:01:59]}  g5 {[%clk 0:02:27]} 30. Nd3 {[%clk 0:01:58]}  Rc8 {[%clk 0:02:21]}
31. Rb3 {[%clk 0:01:51]}  Rc7 {[%clk 0:02:21]} 32. a4 {[%clk 0:01:49]}  Rd5 {[%clk 0:02:19]} 33. Rb8 {[%clk 0:01:44]}  c5 {[%clk 0:02:13]}
34. Ke2 {[%clk 0:01:41]}  c4 {[%clk 0:02:13]} 35. Nb4 {[%clk 0:01:41]}  Re7+ {[%clk 0:02:10]} 36. Kf3 {[%clk 0:01:42]}  g4+ {[%clk 0:02:08]}
37. Kg2 {[%clk 0:01:35]}  Rd1 {[%clk 0:02:06]} 38. Nc6 {[%clk 0:00:50]}  Ree1 {[%clk 0:02:05]} 39. Nd8+ {[%clk 0:00:46]}  Kg6 {[%clk 0:02:05]} 0-1